fUST/lending_fUST_20250912
["ID","MTS","AMOUNT","RATE_DAILY","PERIOD"]
[385147631,1757673054721,-480.0,0.00014246,2]
[385147632,1757673054730,-480.0,0.00014246,2]
[385147633,1757673054739,-480.0,0.00014246,2]
[385147634,1757673054749,-480.0,0.00014246,2]
[385147635,1757673054758,-480.0,0.00014246,2]
[385147636,1757673054767,-480.0,0.00014246,2]
[385147637,1757673054777,-480.0,0.00014246,2]
[385147638,1757673054786,-480.0,0.00014246,2]
[385147639,1757673054795,-480.0,0.00014246,2]
[385147640,1757673054804,-480.0,0.00014246,2]
[385147641,1757673054814,-480.0,0.00014246,2]
[385147642,1757673054823,-483.56746403,0.00014246,2]
[385147643,1757673054832,-480.0,0.00014246,2]
[385147644,1757673054841,-495.43052127,0.00014246,2]
[385147645,1757673054850,-480.83,0.00014246,2]
[385147646,1757673054859,-480.0,0.00014246,2]
[385147647,1757673054869,-480.0,0.00014246,2]
[385147648,1757673054878,-480.0,0.00014246,2]
[385147649,1757673054887,-480.0,0.00014246,2]
[385147650,1757673054896,-480.0,0.00014246,2]
[385147651,1757673054906,-2550.41,0.00014246,2]
[385147652,1757673054915,-480.0,0.00014246,2]
[385147653,1757673054924,-480.0,0.00014246,2]
[385147654,1757673054933,-480.0,0.00014246,2]
[385147655,1757673054943,-480.0,0.00014246,2]
[385147656,1757673054952,-495.0,0.00014246,2]
[385147657,1757673054961,-480.0,0.00014246,2]
[385147658,1757673054970,-480.0,0.00014246,2]
[385147659,1757673054979,-480.0,0.00014246,2]
[385147660,1757673054989,-480.0,0.00014246,2]
[385147661,1757673054998,-480.0,0.00014246,2]
[385147662,1757673055009,-480.0,0.00014246,2]
[385147663,1757673055022,-480.0,0.00014246,2]
[385147664,1757673055032,-480.0,0.00014246,2]
[385147665,1757673055041,-521.29,0.00014246,2]
[385147666,1757673055050,-480.0,0.00014246,2]
[385147667,1757673055060,-506.33,0.00014246,2]
[385147668,1757673055069,-3449.72,0.00014246,2]
[385147669,1757673055079,-500.0,0.00014246,2]
[385147670,1757673055089,-480.0,0.00014246,2]
[385147671,1757673055098,-480.0,0.00014246,2]
[385147672,1757673055108,-480.0,0.00014246,2]
[385147673,1757673055117,-480.0,0.00014246,2]
[385147674,1757673055126,-480.0,0.00014246,2]
[385147675,1757673055135,-480.0,0.00014246,2]
[385147676,1757673055145,-606.05,0.00014246,2]
[385147677,1757673055154,-480.0,0.00014246,2]
[385147678,1757673055163,-480.0,0.00014246,2]
[385147679,1757673055172,-480.0,0.00014246,2]
[385147680,1757673055182,-480.0,0.00014246,2]
[385147681,1757673055191,-480.0,0.00014246,2]
[385147682,1757673055200,-480.0,0.00014246,2]
[385147683,1757673055210,-480.0,0.00014246,2]
[385147684,1757673055219,-480.0,0.00014246,2]
[385147685,1757673055228,-480.0,0.00014246,2]
[385147686,1757673055237,-480.0,0.00014246,2]
[385147687,1757673055246,-483.23324054,0.00014246,2]
[385147688,1757673055327,-480.0,0.00014246,2]
[385147689,1757673055342,-480.0,0.00014246,2]
[385147690,1757673055351,-480.0,0.00014246,2]
[385147691,1757673055361,-533.08926788,0.00014246,2]
[385147692,1757673055370,-592.80953295,0.00014246,2]
[385147693,1757673055379,-480.0,0.00014246,2]
[385147694,1757673055389,-480.0,0.00014246,2]
[385147695,1757673055398,-487.16989621,0.00014246,2]
[385147696,1757673055407,-951.78,0.00014246,2]
[385147697,1757673055416,-480.0,0.00014246,2]
[385147698,1757673055425,-1363.58,0.00014246,2]
[385147699,1757673055434,-267.54342886,0.00014246,2]
[385147700,1757673055443,-485.50320233,0.00014246,2]
[385147701,1757673055452,-480.0,0.00014246,2]
[385147702,1757673055461,-480.0,0.00014246,2]
[385147703,1757673055470,-480.0,0.00014246,2]
[385147704,1757673055481,-480.0,0.00014246,2]
[385147705,1757673055491,-509.73116633,0.00014246,2]
[385147706,1757673055500,-480.0,0.00014246,2]
[385147707,1757673055510,-480.0,0.00014246,2]
[385147708,1757673055521,-480.0,0.00014246,2]
[385147709,1757673055530,-552.65,0.00014246,2]
[385147710,1757673055540,-745.71,0.00014246,2]
[385147711,1757673055549,-480.0,0.00014246,2]
[385147712,1757673055560,-607.04,0.00014246,2]
[385147713,1757673055569,-480.0,0.00014246,2]
[385147714,1757673055578,-480.0,0.00014246,2]
[385147715,1757673055588,-483.80697328,0.00014246,2]
[385147716,1757673055597,-480.0,0.00014246,2]
[385147717,1757673055607,-480.0,0.00014246,2]
[385147718,1757673055617,-480.0,0.00014246,2]
[385147719,1757673055627,-480.0,0.00014246,2]
[385147720,1757673055636,-480.0,0.00014246,2]
[385147721,1757673055646,-441.88219619,0.00014246,2]
[385147722,1757673055656,-480.0,0.00014246,2]
[385147723,1757673055665,-488.57328246,0.00014246,2]
[385147724,1757673055683,-480.0,0.00014246,2]
[385147725,1757673055692,-480.0,0.00014246,2]
[385147726,1757673055702,-1396.93,0.00014246,2]
[385147727,1757673055712,-480.0,0.00014246,2]
[385147728,1757673055721,-293.44889361,0.00014246,2]
[385147729,1757673055731,-480.0,0.00014246,2]
[385147730,1757673055740,-480.0,0.00014246,2]
[385147731,1757673055749,-480.0,0.00014246,2]
[385147732,1757673055759,-480.0,0.00014246,2]
[385147733,1757673055768,-528.73300793,0.00014246,2]
[385147734,1757673055779,-480.0,0.00014246,2]
[385147735,1757673055795,-480.0,0.00014246,2]
[385147736,1757673055805,-596.39,0.00014246,2]
[385147737,1757673055815,-480.0,0.00014246,2]
[385147738,1757673055825,-480.0,0.00014246,2]
[385147739,1757673055835,-480.0,0.00014246,2]
[385147740,1757673055844,-480.0,0.00014246,2]
[385147741,1757673055853,-480.0,0.00014246,2]
[385147742,1757673055863,-497.24624176,0.00014246,2]
[385147743,1757673055872,-480.0,0.00014246,2]
[385147744,1757673055881,-480.0,0.00014246,2]
[385147745,1757673055891,-480.0,0.00014246,2]
[385147746,1757673055900,-480.0,0.00014246,2]
[385147747,1757673055909,-480.0,0.00014246,2]
[385147748,1757673055919,-480.0,0.00014246,2]
[385147749,1757673055928,-480.0,0.00014246,2]
[385147750,1757673055937,-480.0,0.00014246,2]
[385147751,1757673055947,-480.0,0.00014246,2]
[385147752,1757673055956,-480.0,0.00014246,2]
[385147753,1757673055966,-851.25,0.00014246,2]
[385147754,1757673055975,-480.0,0.00014246,2]
[385147755,1757673055984,-480.0,0.00014246,2]
[385147756,1757673055994,-480.0,0.00014246,2]
[385147757,1757673056003,-4670.62,0.00014246,2]
[385147758,1757673056013,-489.50062864,0.00014246,2]
[385147759,1757673056025,-484.87520194,0.00014246,2]
[385147760,1757673056035,-480.0,0.00014246,2]
[385147761,1757673056045,-480.0,0.00014246,2]
[385147762,1757673056054,-231.09043074,0.00014246,2]
[385147763,1757673056064,-480.0,0.00014246,2]
[385147764,1757673056073,-480.0,0.00014246,2]
[385147765,1757673056083,-562.86161447,0.00014246,2]
[385147766,1757673056093,-480.0,0.00014246,2]
[385147767,1757673056102,-480.0,0.00014246,2]
[385147768,1757673056112,-557.97,0.00014246,2]
[385147769,1757673056121,-480.0,0.00014246,2]
[385147770,1757673056131,-536.84,0.00014246,2]
[385147771,1757673056140,-480.0,0.00014246,2]
[385147772,1757673056150,-480.0,0.00014246,2]
[385147773,1757673056160,-480.0,0.00014246,2]
[385147774,1757673056169,-480.0,0.00014246,2]
[385147775,1757673056178,-480.0,0.00014246,2]
[385147776,1757673056187,-531.77,0.00014246,2]
[385147777,1757673056197,-480.0,0.00014246,2]
[385147778,1757673056206,-483.66432483,0.00014246,2]
[385147779,1757673056215,-514.05,0.00014246,2]
[385147780,1757673056225,-480.0,0.00014246,2]
[385147781,1757673056235,-480.0,0.00014246,2]
[385147782,1757673056244,-480.0,0.00014246,2]
[385147783,1757673056253,-480.0,0.00014246,2]
[385147784,1757673056262,-613.39,0.00014246,2]
[385147785,1757673056271,-480.0,0.00014246,2]
[385147786,1757673056281,-480.0,0.00014246,2]
[385147787,1757673056290,-482.92183076,0.00014246,2]
[385147788,1757673056299,-544.67,0.00014246,2]
[385147789,1757673056308,-484.31306688,0.00014246,2]
[385147790,1757673056317,-680.0,0.00014246,2]
[385147791,1757673056326,-480.0,0.00014246,2]
[385147792,1757673056335,-480.0,0.00014246,2]
[385147793,1757673056345,-600.17,0.00014246,2]
[385147794,1757673056354,-480.0,0.00014246,2]
[385147795,1757673056363,-488.99043806,0.00014246,2]
[385147796,1757673056372,-480.0,0.00014246,2]
[385147797,1757673056381,-480.0,0.00014246,2]
[385147798,1757673056390,-480.0,0.00014246,2]
[385147799,1757673056399,-480.0,0.00014246,2]
[385147800,1757673056409,-782.97,0.00014246,2]
[385147801,1757673056418,-480.0,0.00014246,2]
[385147802,1757673056427,-480.0,0.00014246,2]
[385147803,1757673056436,-480.0,0.00014246,2]
[385147804,1757673056445,-480.0,0.00014246,2]
[385147805,1757673056454,-480.0,0.00014246,2]
[385147806,1757673056463,-533.97,0.00014246,2]
[385147807,1757673056472,-480.0,0.00014246,2]
[385147808,1757673056481,-480.0,0.00014246,2]
[385147809,1757673056490,-480.0,0.00014246,2]
[385147810,1757673056500,-490.86143636,0.00014246,2]
[385147811,1757673056509,-480.0,0.00014246,2]
[385147812,1757673056519,-546.73865193,0.00014246,2]
[385147813,1757673056528,-480.0,0.00014246,2]
[385147814,1757673056538,-480.0,0.00014246,2]
[385147815,1757673056547,-495.46673766,0.00014246,2]
[385147816,1757673056556,-640.0,0.00014246,2]
[385147817,1757673056565,-480.0,0.00014246,2]
[385147818,1757673056574,-480.0,0.00014246,2]
[385147819,1757673056585,-480.0,0.00014246,2]
[385147820,1757673056594,-480.0,0.00014246,2]
[385147821,1757673056603,-407.7494395,0.00014246,2]
[385147822,1757673056612,-500.0,0.00014246,2]
[385147823,1757673056622,-151.0,0.000143,2]
[385147824,1757673056632,-190.0,0.000143,2]
[385147825,1757673056641,-6000.0,0.00014328,2]
[385147826,1757673056651,-160.0,0.00014353,2]
[385147827,1757673056661,-160.0,0.00014353,2]
[385147828,1757673056671,-160.0,0.00014353,2]
[385147829,1757673056683,-160.0,0.00014354,2]
[385147830,1757673056767,-217.7145751,0.00014354,2]
[385147831,1757673056777,-417.15472785,0.00014354,2]
[385147832,1757673056788,-847.0429734,0.00014354,2]
[385147833,1757673056798,-160.0,0.00014354,2]
[385147834,1757673056807,-531.04384426,0.00014354,2]
[385147835,1757673056817,-160.0,0.00014354,2]
[385147836,1757673056827,-160.0,0.00014354,2]
[385147837,1757673056837,-160.0,0.00014354,2]
[385147838,1757673056846,-160.0,0.00014354,2]
[385147839,1757673056856,-233.13074058,0.00014355,2]
[385147840,1757673056867,-160.0,0.00014355,2]
[385147841,1757673056876,-218.81720538,0.00014363,2]
[385147842,1757673056885,-353.49,0.0001442,2]
[385147843,1757673056896,-151.0,0.000145,2]
[385147844,1757673056905,-302.93562152,0.0001452,2]
[385147845,1757673056916,-157.0,0.0001452,2]
[385147846,1757673056926,-284.33140433,0.0001452,2]
[385147847,1757673056935,-500.0,0.0001452,2]
[385147848,1757673056945,-500.0,0.0001452,2]
[385147849,1757673056955,-231.64016978,0.0001452,2]
[385147850,1757673056966,-500.0,0.0001452,2]
[385147851,1757673056976,-500.0,0.0001452,2]
[385147852,1757673056985,-480.0,0.0001452,2]
[385147853,1757673056995,-480.0,0.0001452,2]
[385147854,1757673057005,-480.0,0.0001452,2]
[385147855,1757673057015,-480.0,0.0001452,2]
[385147856,1757673057027,-480.0,0.0001452,2]
[385147857,1757673057036,-500.0,0.0001452,2]
[385147858,1757673057045,-480.0,0.0001452,2]
[385147859,1757673057055,-452.27817755,0.0001452,2]
[385147860,1757673057065,-480.0,0.0001452,2]
[385147861,1757673057075,-480.0,0.0001452,2]
[385147862,1757673057085,-480.0,0.0001452,2]
[385147863,1757673057095,-480.0,0.0001452,2]
[385147864,1757673057104,-559.19,0.0001452,2]
[385147865,1757673057114,-228.12395856,0.0001452,2]
[385147866,1757673057124,-480.0,0.0001452,2]
[385147867,1757673057134,-480.0,0.0001452,2]
[385147868,1757673057143,-461.02074401,0.0001452,2]
[385147869,1757673057152,-480.0,0.0001452,2]
[385147870,1757673057162,-480.0,0.0001452,2]
[385147871,1757673057171,-480.0,0.0001452,2]
[385147872,1757673057180,-480.0,0.0001452,2]
[385147873,1757673057189,-480.0,0.0001452,2]
[385147874,1757673057198,-480.0,0.0001452,2]
[385147875,1757673057207,-480.0,0.0001452,2]
[385147876,1757673057216,-480.0,0.0001452,2]
[385147877,1757673057226,-480.0,0.0001452,2]
[385147878,1757673057235,-530.11145274,0.0001452,2]
[385147879,1757673057244,-480.0,0.0001452,2]
[385147880,1757673057254,-480.0,0.0001452,2]
[385147881,1757673057263,-480.0,0.0001452,2]
[385147882,1757673057273,-480.0,0.0001452,2]
[385147883,1757673057283,-480.0,0.0001452,2]
[385147884,1757673057293,-480.0,0.0001452,2]
[385147885,1757673057304,-422.59115298,0.0001452,2]
[385147886,1757673057314,-480.0,0.0001452,2]
[385147887,1757673057324,-509.31083558,0.0001452,2]
[385147888,1757673057335,-480.0,0.0001452,2]
[385147889,1757673057345,-480.0,0.0001452,2]
[385147890,1757673057355,-496.66,0.0001452,2]
[385147891,1757673057365,-490.52124139,0.0001452,2]
[385147892,1757673057376,-480.0,0.0001452,2]
[385147893,1757673057386,-480.0,0.0001452,2]
[385147894,1757673057396,-480.0,0.0001452,2]
[385147895,1757673057407,-480.0,0.0001452,2]
[385147896,1757673057417,-480.0,0.0001452,2]
[385147897,1757673057426,-480.0,0.0001452,2]
[385147898,1757673057436,-480.0,0.0001452,2]
[385147899,1757673057446,-480.0,0.0001452,2]
[385147900,1757673057455,-480.0,0.0001452,2]
[385147901,1757673057466,-480.0,0.0001452,2]
[385147902,1757673057478,-480.0,0.0001452,2]
[385147903,1757673057488,-480.0,0.0001452,2]
[385147904,1757673057498,-480.0,0.0001452,2]
[385147905,1757673057508,-480.0,0.0001452,2]
[385147906,1757673057518,-480.0,0.0001452,2]
[385147907,1757673057528,-480.0,0.0001452,2]
[385147908,1757673057537,-480.0,0.0001452,2]
[385147909,1757673057546,-480.0,0.0001452,2]
[385147910,1757673057555,-480.0,0.0001452,2]
[385147911,1757673057565,-480.0,0.0001452,2]
[385147912,1757673057574,-480.0,0.0001452,2]
[385147913,1757673057584,-480.0,0.0001452,2]
[385147914,1757673057593,-489.63780146,0.0001452,2]
[385147915,1757673057603,-480.0,0.0001452,2]
[385147916,1757673057612,-480.0,0.0001452,2]
[385147917,1757673057622,-480.0,0.0001452,2]
[385147918,1757673057631,-480.0,0.0001452,2]
[385147919,1757673057640,-480.0,0.0001452,2]
[385147920,1757673057650,-391.94558077,0.0001452,2]
[385147921,1757673057659,-480.0,0.0001452,2]
[385147922,1757673057668,-499.21331432,0.0001452,2]
[385147923,1757673057677,-480.0,0.0001452,2]
[385147924,1757673057687,-480.0,0.0001452,2]
[385147925,1757673057696,-480.0,0.0001452,2]
[385147926,1757673057705,-480.0,0.0001452,2]
[385147927,1757673057714,-489.87823433,0.0001452,2]
[385147928,1757673057724,-480.0,0.0001452,2]
[385147929,1757673057733,-480.0,0.0001452,2]
[385147930,1757673057743,-480.0,0.0001452,2]
[385147931,1757673057752,-480.0,0.0001452,2]
[385147932,1757673057761,-480.0,0.0001452,2]
[385147933,1757673057770,-480.0,0.0001452,2]
[385147934,1757673057780,-176.3067571,0.0001452,2]
[385147935,1757673057789,-480.0,0.0001452,2]
[385147936,1757673057798,-480.0,0.0001452,2]
[385147937,1757673057807,-480.0,0.0001452,2]
[385147938,1757673057816,-480.0,0.0001452,2]
[385147939,1757673057825,-480.0,0.0001452,2]
[385147940,1757673057835,-497.0875179,0.0001452,2]
[385147941,1757673057844,-480.0,0.0001452,2]
[385147942,1757673057853,-480.0,0.0001452,2]
[385147943,1757673057862,-480.0,0.0001452,2]
[385147944,1757673057871,-480.0,0.0001452,2]
[385147945,1757673057881,-480.0,0.0001452,2]
[385147946,1757673057890,-480.0,0.0001452,2]
[385147947,1757673057899,-449.71670381,0.0001452,2]
[385147948,1757673057908,-480.0,0.0001452,2]
[385147949,1757673057918,-526.29072467,0.0001452,2]
[385147950,1757673057927,-480.0,0.0001452,2]
[385147951,1757673057937,-480.0,0.0001452,2]
[385147952,1757673057946,-480.83,0.0001452,2]
[385147953,1757673057955,-480.0,0.0001452,2]
[385147954,1757673057965,-480.0,0.0001452,2]
[385147955,1757673057975,-370.04950511,0.0001452,2]
[385147956,1757673057985,-480.0,0.0001452,2]
[385147957,1757673057994,-480.0,0.0001452,2]
[385147958,1757673058005,-2550.41,0.0001452,2]
[385147959,1757673058015,-480.0,0.0001452,2]
[385147960,1757673058104,-480.0,0.0001452,2]
[385147961,1757673058115,-480.0,0.0001452,2]
[385147962,1757673058125,-488.80103727,0.0001452,2]
[385147963,1757673058134,-495.0,0.0001452,2]
[385147964,1757673058143,-480.0,0.0001452,2]
[385147965,1757673058153,-480.0,0.0001452,2]
[385147966,1757673058163,-480.0,0.0001452,2]
[385147967,1757673058172,-386.23740906,0.0001452,2]
[385147968,1757673058182,-480.0,0.0001452,2]
[385147969,1757673058191,-529.25235228,0.0001452,2]
[385147970,1757673058201,-480.0,0.0001452,2]
[385147971,1757673058210,-521.29,0.0001452,2]
[385147972,1757673058219,-480.0,0.0001452,2]
[385147973,1757673058229,-506.33,0.0001452,2]
[385147974,1757673058238,-3449.72,0.0001452,2]
[385147975,1757673058248,-480.0,0.0001452,2]
[385147976,1757673058258,-480.0,0.0001452,2]
[385147977,1757673058268,-480.0,0.0001452,2]
[385147978,1757673058278,-480.0,0.0001452,2]
[385147979,1757673058287,-334.49670758,0.0001452,2]
[385147980,1757673058297,-480.0,0.0001452,2]
[385147981,1757673058306,-606.05,0.0001452,2]
[385147982,1757673058316,-484.27593631,0.0001452,2]
[385147983,1757673058325,-480.0,0.0001452,2]
[385147984,1757673058335,-480.0,0.0001452,2]
[385147985,1757673058344,-480.0,0.0001452,2]
[385147986,1757673058354,-480.0,0.0001452,2]
[385147987,1757673058363,-480.0,0.0001452,2]
[385147988,1757673058373,-480.0,0.0001452,2]
[385147989,1757673058382,-480.0,0.0001452,2]
[385147990,1757673058391,-480.0,0.0001452,2]
[385147991,1757673058401,-593.44050009,0.0001452,2]
[385147992,1757673058409,-480.0,0.0001452,2]
[385147993,1757673058419,-480.0,0.0001452,2]
[385147994,1757673058428,-480.0,0.0001452,2]
[385147995,1757673058437,-480.0,0.0001452,2]
[385147996,1757673058447,-171.87259867,0.0001452,2]
[385147997,1757673058456,-951.78,0.0001452,2]
[385147998,1757673058466,-480.0,0.0001452,2]
[385147999,1757673058475,-1363.58,0.0001452,2]
[385148000,1757673058485,-480.0,0.0001452,2]
[385148001,1757673058494,-480.0,0.0001452,2]
[385148002,1757673058503,-480.0,0.0001452,2]
[385148003,1757673058512,-491.85251577,0.0001452,2]
[385148004,1757673058522,-480.0,0.0001452,2]
[385148005,1757673058531,-485.22244816,0.0001452,2]
[385148006,1757673058542,-552.65,0.0001452,2]
[385148007,1757673058551,-745.71,0.0001452,2]
[385148008,1757673058562,-480.0,0.0001452,2]
[385148009,1757673058572,-607.04,0.0001452,2]
[385148010,1757673058582,-493.47429142,0.0001452,2]
[385148011,1757673058591,-480.0,0.0001452,2]
[385148012,1757673058601,-480.0,0.0001452,2]
[385148013,1757673058610,-480.0,0.0001452,2]
[385148014,1757673058619,-480.0,0.0001452,2]
[385148015,1757673058629,-480.0,0.0001452,2]
[385148016,1757673058638,-480.0,0.0001452,2]
[385148017,1757673058647,-350.88918351,0.0001452,2]
[385148018,1757673058657,-1396.93,0.0001452,2]
[385148019,1757673058666,-480.0,0.0001452,2]
[385148020,1757673058676,-457.83761362,0.0001452,2]
[385148021,1757673058685,-307.30933101,0.0001452,2]
[385148022,1757673058694,-480.0,0.0001452,2]
[385148023,1757673058703,-529.76015036,0.0001452,2]
[385148024,1757673058713,-480.0,0.0001452,2]
[385148025,1757673058722,-480.0,0.0001452,2]
[385148026,1757673058732,-596.39,0.0001452,2]
[385148027,1757673058743,-480.0,0.0001452,2]
[385148028,1757673058753,-480.0,0.0001452,2]
[385148029,1757673058763,-480.0,0.0001452,2]
[385148030,1757673058773,-480.0,0.0001452,2]
[385148031,1757673058783,-480.0,0.0001452,2]
[385148032,1757673058793,-480.0,0.0001452,2]
[385148033,1757673058802,-480.0,0.0001452,2]
[385148034,1757673058811,-155.24016196,0.0001452,2]
[385148035,1757673058821,-480.0,0.0001452,2]
[385148036,1757673058830,-480.0,0.0001452,2]
[385148037,1757673058839,-480.0,0.0001452,2]
[385148038,1757673058848,-480.0,0.0001452,2]
[385148039,1757673058857,-480.0,0.0001452,2]
[385148040,1757673058866,-480.0,0.0001452,2]
[385148041,1757673058876,-851.25,0.0001452,2]
[385148042,1757673058885,-480.0,0.0001452,2]
[385148043,1757673058894,-480.0,0.0001452,2]
[385148044,1757673058903,-480.0,0.0001452,2]
[385148045,1757673058913,-4670.62,0.0001452,2]
[385148046,1757673058922,-480.0,0.0001452,2]
[385148047,1757673058932,-480.0,0.0001452,2]
[385148048,1757673058941,-480.0,0.0001452,2]
[385148049,1757673058951,-480.0,0.0001452,2]
[385148050,1757673058959,-480.0,0.0001452,2]
[385148051,1757673058968,-480.0,0.0001452,2]
[385148052,1757673058978,-557.97,0.0001452,2]
[385148053,1757673058987,-323.07144135,0.0001452,2]
[385148054,1757673058996,-536.84,0.0001452,2]
[385148055,1757673059006,-489.76596619,0.0001452,2]
[385148056,1757673059017,-480.0,0.0001452,2]
[385148057,1757673059027,-480.0,0.0001452,2]
[385148058,1757673059036,-480.0,0.0001452,2]
[385148059,1757673059046,-480.0,0.0001452,2]
[385148060,1757673059056,-531.77,0.0001452,2]
[385148061,1757673059066,-480.0,0.0001452,2]
[385148062,1757673059076,-514.05,0.0001452,2]
[385148063,1757673059086,-485.1175899,0.0001452,2]
[385148064,1757673059096,-480.0,0.0001452,2]
[385148065,1757673059105,-480.0,0.0001452,2]
[385148066,1757673059114,-613.39,0.0001452,2]
[385148067,1757673059123,-480.0,0.0001452,2]
[385148068,1757673059132,-480.0,0.0001452,2]
[385148069,1757673059142,-544.67,0.0001452,2]
[385148070,1757673059151,-680.0,0.0001452,2]
[385148071,1757673059160,-480.0,0.0001452,2]
[385148072,1757673059169,-480.0,0.0001452,2]
[385148073,1757673059178,-600.17,0.0001452,2]
[385148074,1757673059187,-480.0,0.0001452,2]
[385148075,1757673059197,-480.0,0.0001452,2]
[385148076,1757673059206,-480.0,0.0001452,2]
[385148077,1757673059216,-480.0,0.0001452,2]
[385148078,1757673059226,-782.97,0.0001452,2]
[385148079,1757673059237,-480.0,0.0001452,2]
[385148080,1757673059315,-480.0,0.0001452,2]
[385148081,1757673059326,-480.0,0.0001452,2]
[385148082,1757673059335,-480.0,0.0001452,2]
[385148083,1757673059345,-533.97,0.0001452,2]
[385148084,1757673059354,-495.23008015,0.0001452,2]
[385148085,1757673059363,-480.0,0.0001452,2]
[385148086,1757673059372,-480.0,0.0001452,2]
[385148087,1757673059381,-480.0,0.0001452,2]
[385148088,1757673059391,-480.0,0.0001452,2]
[385148089,1757673059400,-480.0,0.0001452,2]
[385148090,1757673059409,-640.0,0.0001452,2]
[385148091,1757673059420,-480.0,0.0001452,2]
[385148092,1757673059429,-480.0,0.0001452,2]
[385148093,1757673059439,-480.0,0.0001452,2]
[385148094,1757673059451,-480.0,0.0001452,2]
[385148095,1757673059461,-1064.0139079,0.00014521,2]
[385148096,1757673059471,-1093.05860003,0.00014521,2]
[385148097,1757673059480,-1000.0,0.00014521,2]
[385148098,1757673059489,-501.07470523,0.00014521,2]
[385148099,1757673059499,-1000.0,0.00014521,2]
[385148100,1757673059508,-1002.30549417,0.00014521,2]
[385148101,1757673059517,-500.0,0.00014521,2]
[385148102,1757673059526,-1000.0,0.00014521,2]
[385148103,1757673059536,-393.34958586,0.00014521,2]
[385148104,1757673059546,-983.17738855,0.00014521,2]
[385148105,1757673059555,-1000.0,0.00014521,2]
[385148106,1757673059564,-1000.0,0.00014521,2]
[385148107,1757673059574,-500.0,0.00014521,2]
[385148108,1757673059583,-1000.0,0.00014521,2]
[385148109,1757673059592,-1000.0,0.00014521,2]
[385148110,1757673059602,-521.9694036,0.00014521,2]
[385148111,1757673059612,-866.38891172,0.00014521,2]
[385148112,1757673059622,-1000.0,0.00014521,2]
[385148113,1757673059631,-1000.0,0.00014521,2]
[385148114,1757673059641,-501.60106191,0.00014573,2]
[385148115,1757673059650,-502.00838864,0.00014573,2]
[385148116,1757673059660,-151.0,0.000146,2]
[385148117,1757673059669,-4000.0,0.00014766,2]
[385148118,1757673059679,-1500.0,0.00014768,2]
[385148119,1757673059690,-1500.0,0.00014768,2]
[385148120,1757673059699,-654.13418099,0.00014768,2]
[385148121,1757673059710,-1500.0,0.00014768,2]
[385148122,1757673059720,-1500.0,0.00014768,2]
[385148123,1757673059729,-1501.63624353,0.00014768,2]
[385148124,1757673059739,-500.0,0.00014768,2]
[385148125,1757673059748,-157.0,0.00014794,2]
[385148126,1757673059757,-531.31691441,0.00014794,2]
[385148127,1757673059767,-500.0,0.00014794,2]
[385148128,1757673059779,-500.0,0.00014794,2]
[385148129,1757673059791,-379.99,0.00014794,2]
[385148130,1757673059804,-500.0,0.00014794,2]